[Event "German Bundesliga 2022-23"]
[Site "Germany"]
[Date "2002.01.09"]
[Round "4"]
[White "Horvath, Dominik"]
[Black "Van Wely, Loek"]
[Result "0-1"]
[ECO "A34"]
[WhiteElo "2501"]
[BlackElo "2637"]
[Annotator "TA"]
[PlyCount "68"]
[EventDate "2022.10.21"]
[EventType "team-tourn"]
[EventCountry "GER"]
[SourceTitle "playchess.com"]
[Source "ChessBase"]
[SourceQuality "1"]
[TimeControl "40/6000+30:3000+30"]

{[%evp 9,68,16,14,22,22,27,29,43,34,14,21,10,51,58,62,9,22,12,20,0,0,0,0,0,0,0,0,6,39,6,9,19,35,16,31,0,0,-259,-241,-235,0,-267,-31,-145,-145,-467,-317,-308,-320,-316,-316,-304,-260,-276,-273,-464,-457,-1804,-1765,-29989,-29990]} 1. Nf3 {[%emt 0:01:00]} Nf6 {[%emt 0:05:00]} 2. c4 {[%emt 0:00:00]} c5 {[%emt 0:00:30]} 3. Nc3 {[%emt 0:00:00]} e6 {[%emt 0:01:30]} 4. e4 {[%emt 0:01:30]} Nc6 {[%emt 0:02:30]} 5. Be2 {[%emt 0:00:30]} b6 {[%emt 0:04:30]} 6. O-O {[%emt 0:00:30] A34: Symmetrical English: 2 Nc3, lines with ...d5.} Bb7 {[%emt 0:01:30]} 7. d4 {[%emt 0:00:30]} cxd4 {[%emt 0:00:30]} 8. Nxd4 {[%emt 0:00:00] White has an edge.} Qb8 {[%emt 0:11:30]} 9. Nxc6 {[%emt 0:00:00]} Bxc6 {[%emt 0:03:30] [#]} 10. Qd3 $146 {[%emt 0:00:30]} ({Predecessor:} 10. Bd3 Bc5 11. Kh1 O-O 12. Qe2 d6 13. Bg5 Nd7 14. Rac1 a6 15. a3 Re8 16. b4 {0-1 (44) Brunner,L (2500)-Christiansen,L (2555) Switzerland 1996}) 10... Bc5 {[%emt 0:16:30]} 11. Be3 {[%emt 0:03:30]} O-O {[%emt 0:04:30]} 12. f4 {[%emt 0:07:30]} (12. Rad1 $14) 12... e5 $11 {[%emt 0:03:30]} 13. Bxc5 {[%emt 0:15:30]} bxc5 {[%emt 0:01:30]} 14. f5 {[%emt 0:00:30]} Qxb2 {[%emt 0:27:30]} 15. g4 {[%emt 0:00:30]} (15. Rab1 $5 Qa3 $8 16. Rb3 $15) 15... h6 {[%emt 0:06:53]} 16. h4 {[%emt 0:04:30]} (16. Rab1 $5 Qa3 $8 17. Rb3 $15) 16... Nh7 {[%emt 0:00:43] Prevents g5.} 17. g5 {[%emt 0:11:30]} hxg5 {[%emt 0:00:51]} 18. hxg5 {[%emt 0:00:00]} (18. Rab1 $5 Qa3 $8 19. hxg5 $11) 18... Nxg5 {[%emt 0:03:32] And now ...Rab8 would win.} 19. f6 {[%emt 0:00:00]} gxf6 {[%emt 0:00:04] Hoping for ...Kg7.} 20. Rab1 {[%emt 0:01:30]} Qa3 {[%emt 0:00:03] Strongly threatening ...Kg7.} 21. Rxf6 {[%emt 0:00:30]} Kg7 {[%emt 0:03:34]} 22. Rbf1 {[%emt 0:10:30]} (22. Rf5 $5 {[%cal Rf5g5]} f6 23. Qg3 $16) 22... Rg8 $1 {[%emt 0:00:39]} 23. R6f5 $2 {[%emt 0:19:30][%mdl 8192]} (23. Bg4 $11 {and White is okay.}) 23... Kh8 $19 {[%emt 0:02:09]} 24. Kf2 {[%emt 0:00:30] [#] Rh1+ would kill now.} Rg6 $2 {[%emt 0:01:16]} (24... Bxe4 $1 $19 {[%mdl 512]} 25. Nxe4 Nxe4+ 26. Ke1 Qc1+ 27. Bd1 Rg3) 25. Rxe5 $2 {[%emt 0:06:30][%mdl 8192] [#]} (25. Rh1+ $11 Kg7 26. Rxg5 Rxg5 27. Qd6) 25... Rag8 $2 {[%emt 0:03:48]} ({Better is} 25... Rf6+ $1 $19 26. Kg1 Rxf1+ 27. Bxf1 Rg8) 26. Rh1+ {[%emt 0:01:30]} (26. Qd2 $15 Rf6+ 27. Ke1) 26... Kg7 $17 {[%emt 0:00:17] Threatens to win with ...Rh8.} 27. Rh5 {[%emt 0:01:30][%mdl 8192] Against Rh8. This costs White the game.} (27. Nd5 $17 Qb2 28. Qc3 Qxc3 29. Nxc3) 27... Ne6 {[%emt 0:03:20]} 28. Qd2 {[%emt 0:03:30]} Kf8 {[%emt 0:00:59] White must now prevent ...Rg2+. The board is on fire.} 29. Bf3 {[%emt 0:07:14] Inhibits Rg2+.} Nd4 {[%emt 0:00:09] aiming for ...Nxf3.} 30. Rhg5 {[%emt 0:06:08]} d6 $40 {[%emt 0:01:04][%mdl 128] Black attacks with force.} ({Stronger than} 30... Rxg5 31. Rxg5 Rxg5 32. Qxg5 $17) 31. Rxg6 {[%emt 0:00:38]} Rxg6 {[%emt 0:00:02]} ({Don't do} 31... fxg6 32. Qf4+ $18) 32. Rh5 {[%emt 0:01:47]} (32. Rf5) 32... Rf6 $19 {[%emt 0:00:35]} ({But not} 32... Nxf3 $2 33. Kxf3 Qb4 34. Kf2 $19) 33. Rh3 {[%emt 0:00:02] [#]} (33. Rh8+ $142 Ke7 34. Rh3) 33... Bxe4 $1 {[%emt 0:00:48][%cal Rd4f3][%mdl 512]} 34. Qg5 {[%emt 0:01:32]} (34. Kg2 Bxf3+) 34... Qb2+ {[%emt 0:00:39] Weighted Error Value: White=1.02/Black=0.29 (precise)} 0-1

[Event "German Bundesliga 2022-23"]
[Site "Germany"]
[Date "2002.01.09"]
[Round "4"]
[White "Popovic, Dusan"]
[Black "Vrolijk, Liam"]
[Result "1/2-1/2"]
[ECO "C44"]
[WhiteElo "2494"]
[BlackElo "2491"]
[Annotator "TA"]
[PlyCount "60"]
[EventDate "2022.10.21"]
[EventType "team-tourn"]
[EventCountry "GER"]
[SourceTitle "playchess.com"]
[Source "ChessBase"]
[SourceQuality "1"]
[TimeControl "40/6000+30:3000+30"]

{[%evp 9,60,-14,-14,-14,-13,-24,-20,-10,-10,-13,-23,-14,0,-22,-33,-51,-36,-70,-46,-29,-22,-27,-9,-14,-17,-9,-9,-35,-7,-13,-7,-7,-7,-7,0,0,0,-5,0,-1,-2,-8,-7,-8,-8,-8,-9,-5,-8,-8,20,19,19]} 1. e4 {[%emt 0:01:00]} e5 {[%emt 0:01:00]} 2. Nf3 {[%emt 0:00:00]} Nc6 {[%emt 0:00:00]} 3. g3 {[%emt 0:00:00]} d5 {[%emt 0:05:00]} 4. exd5 {[%emt 0:00:30]} Qxd5 {[%emt 0:00:00]} 5. Nc3 {[%emt 0:01:30] [#]} Qd6 $146 {[%emt 0:02:00]} ({Predecessor:} 5... Qd8 6. h3 a6 7. Bc4 Bc5 8. Qe2 Qf6 9. Nd5 Qd6 10. O-O Nf6 11. Nxf6+ Qxf6 12. d3 O-O 13. Be3 Bxe3 14. fxe3 Qd6 15. Ng5 Be6 16. Qh5 Nd8 17. Qxh7# {1-0 (17) McStraw,R (1186)-Hart,J (1277) Columbus 1997}) 6. Bg2 {[%emt 0:00:30] C44: Ponziani Opening and Scotch Gambit.} Bg4 {[%emt 0:01:30][%cal Bc8g4,Bg4h5,Bh5g6][%mdl 32]} 7. h3 {[%emt 0:01:30]} Bh5 {[%emt 0:01:30]} 8. g4 {[%emt 0:05:30]} Bg6 {[%emt 0:00:00]} 9. Nh4 {[%emt 0:00:30]} O-O-O {[%emt 0:16:00]} 10. d3 {[%emt 0:01:30]} Nd4 {[%emt 0:06:30] Inhibits Qf3.} 11. Be3 {[%emt 0:05:30]} Ne7 {[%emt 0:03:30][%cal Bg8e7,Be7d5,Bd5e3][%mdl 32]} 12. Ne4 {[%emt 0:21:30]} Bxe4 {[%emt 0:05:30]} 13. Bxe4 {[%emt 0:00:00]} Nd5 {[%emt 0:01:30]} (13... g6 $5) 14. c3 {[%emt 0:20:00] Prevents Qb4.} Nxe3 {[%emt 0:18:30]} 15. fxe3 {[%emt 0:00:00]} Be7 {[%emt 0:00:30]} (15... Ne6 {with more complications.} 16. Qa4 Qb6 17. O-O-O Qxe3+ 18. Kb1 Kb8) 16. Nf5 {[%emt 0:20:00]} Nxf5 {[%emt 0:00:30]} 17. Bxf5+ {[%emt 0:00:30]} Kb8 {[%emt 0:00:30]} 18. Qf3 {[%emt 0:03:30]} (18. Qb3 {keeps more tension.} Bh4+ 19. Ke2 c6 20. Raf1) 18... Bh4+ {[%emt 0:05:30]} (18... g6 $5 19. Be4 $8 Bh4+ 20. Kd1 Rd7 $11) 19. Kd2 {[%emt 0:03:30] The position is equal.} g6 {[%emt 0:10:30]} (19... Qa6 {looks sharper.} 20. a4 h5 21. Be4 hxg4 22. hxg4 Qe6) 20. Be4 {[%emt 0:00:00][%csl LRb7,LRf7]} Rhf8 {[%emt 0:00:30][%cal Of7f5,Bh8f8,Bf8f3,Bf3e3][%mdl 32] [#] Threatens to win with ...f5!} 21. Kc2 {[%emt 0:06:18]} f5 {[%emt 0:03:30]} 22. gxf5 {[%emt 0:00:26]} gxf5 {[%emt 0:00:30]} 23. Bxf5 {[%emt 0:01:13] [#]} Qxd3+ $1 {[%emt 0:20:27][%mdl 64]} 24. Bxd3 {[%emt 0:00:36]} Rxf3 {[%emt 0:00:30]} 25. Raf1 {[%emt 0:00:30]} Rxe3 {[%emt 0:00:30]} 26. Bxh7 {[%emt 0:00:30]} Re2+ {[%emt 0:00:30]} 27. Kb1 {[%emt 0:00:30]} a5 {[%emt 0:00:30] Black wants to play ...Rdd2.} 28. Rd1 {[%emt 0:00:30]} Rxd1+ {[%emt 0:00:30]} 29. Rxd1 {[%emt 0:00:30]} Re1 {[%emt 0:00:30]} 30. Rxe1 {[%emt 0:00:30]} Bxe1 {[%emt 0:00:30] Weighted Error Value: White=0.04 (flawless) /Black=0.06 (flawless)} 1/2-1/2

[Event "German Bundesliga 2022-23"]
[Site "Germany"]
[Date "2002.01.09"]
[Round "4"]
[White "Watson, William N"]
[Black "Naumann, Alexander"]
[Result "1/2-1/2"]
[ECO "C78"]
[WhiteElo "2492"]
[BlackElo "2513"]
[Annotator "TA"]
[PlyCount "69"]
[EventDate "2022.10.21"]
[EventType "team-tourn"]
[EventCountry "GER"]
[SourceTitle "playchess.com"]
[Source "ChessBase"]
[SourceQuality "1"]
[TimeControl "40/6000+30:3000+30"]

{[%evp 23,69,25,28,-19,-12,-20,-20,-39,-40,-55,-59,-182,-211,-183,16,16,10,8,9,0,0,0,0,0,0,0,0,0,0,0,0,0,0,0,0,0,0,0,0,0,0,0,0,0,0,0,0,0]} 1. e4 {[%emt 0:01:00]} e5 {[%emt 0:01:00]} 2. Nf3 {[%emt 0:00:00]} Nc6 {[%emt 0:00:00]} 3. Bb5 {[%emt 0:00:00]} a6 {[%emt 0:00:00]} 4. Ba4 {[%emt 0:00:00]} Nf6 {[%emt 0:00:00]} 5. O-O {[%emt 0:00:00]} b5 {[%emt 0:01:00]} 6. Bb3 {[%emt 0:00:30]} Bc5 {[%emt 0:00:30]} 7. c3 {[%emt 0:00:30]} d6 {[%emt 0:00:00]} 8. d4 {[%emt 0:00:00]} Bb6 {[%emt 0:00:00]} 9. h3 {[%emt 0:03:00]} Bb7 {[%emt 0:02:30]} 10. Re1 {[%emt 0:02:30]} h6 {[%emt 0:00:30]} 11. Be3 {[%emt 0:00:30]} O-O {[%emt 0:02:30]} 12. Nbd2 {[%emt 0:01:30]} Re8 {[%emt 0:03:30] [#]} 13. a3 $146 {[%emt 0:28:30] C78: Ruy Lopez: Archangelsk and Möller Defences.} (13. d5 {deserves consideration.} Ne7 14. Bxb6 cxb6 15. Bc2) ({Predecessor:} 13. d5 Ne7 14. Bxb6 cxb6 15. a4 bxa4 16. Bxa4 b5 17. Bc2 Nd7 18. Nf1 Nb6 19. Ne3 Rf8 20. Nh4 Nexd5 21. Nhf5 Nxe3 22. Rxe3 {½-½ (32) Hamarat,T (2595)-Geenen,M (2575) Yugoslavia 1998}) 13... exd4 $11 {[%emt 0:18:30]} 14. cxd4 {[%emt 0:01:30]} Na5 {[%emt 0:00:30]} 15. Bc2 {[%emt 0:09:30]} Nxe4 {[%emt 0:12:30]} 16. Nxe4 {[%emt 0:13:30]} Bxe4 {[%emt 0:00:30]} 17. Bxh6 {[%emt 0:17:30]} Bxc2 $19 {[%emt 0:03:30]} 18. Qxc2 {[%emt 0:00:30][%cal Of3g5] [#] Strongly threatening Ng5!} Qf6 {[%emt 0:35:30] Prevents Ng5.} ({Not} 18... Rxe1+ 19. Rxe1 gxh6 20. Qf5 $11) (18... gxh6 $19 19. Qf5 Nc6 20. Rxe8+ Qxe8) 19. Bg5 {[%emt 0:03:30] The position is equal.} Qg6 {[%emt 0:00:00]} 20. Qxg6 {[%emt 0:02:30]} fxg6 {[%emt 0:00:00]} 21. Kf1 {[%emt 0:00:30]} Nb3 {[%emt 0:01:30][%csl LRa1,LRd4]} 22. Rad1 {[%emt 0:00:30]} Rxe1+ {[%emt 0:00:30]} 23. Kxe1 {[%emt 0:00:30]} Re8+ {[%emt 0:00:30]} 24. Kf1 {[%emt 0:00:30]} a5 {[%emt 0:00:30]} 25. d5 {[%emt 0:04:42]} a4 {[%emt 0:03:30]} 26. Bd2 {[%emt 0:02:22]} Nxd2+ {[%emt 0:06:38]} 27. Rxd2 $11 {[%emt 0:01:45][%mdl 4096] Endgame KRB-KRN} Re4 {[%emt 0:00:54]} 28. Re2 {[%emt 0:06:53]} Rc4 {[%emt 0:00:12]} 29. g3 {[%emt 0:01:24]} Rc1+ {[%emt 0:00:50]} 30. Kg2 {[%emt 0:03:31]} Rd1 {[%emt 0:00:17]} 31. Ng5 {[%emt 0:00:47][%cal Re2e8] [#]} Kf8 {[%emt 0:00:07] Prevents Re8+.} 32. Ne6+ {[%emt 0:02:21]} Kf7 {[%emt 0:01:55]} 33. Ng5+ {[%emt 0:01:01]} Kf8 $1 {[%emt 0:00:12]} ({But not} 33... Kf6 34. f4 Rxd5 35. Re6+ Kf5 36. Re4 $16) 34. Ne6+ {[%emt 0:01:25]} Kf7 {[%emt 0:00:06]} 35. Ng5+ {[%emt 0:00:49] Weighted Error Value: White=0.12 (very precise) /Black=0.11 (very precise)} 1/2-1/2

[Event "German Bundesliga 2022-23"]
[Site "Germany"]
[Date "2002.01.09"]
[Round "4"]
[White "Sedlak, Nikola"]
[Black "Nguyen, Thai Dai Van"]
[Result "1/2-1/2"]
[ECO "D02"]
[WhiteElo "2482"]
[BlackElo "2645"]
[Annotator "TA"]
[PlyCount "41"]
[EventDate "2022.10.21"]
[EventType "team-tourn"]
[EventCountry "GER"]
[SourceTitle "playchess.com"]
[Source "ChessBase"]
[SourceQuality "1"]
[TimeControl "40/6000+30:3000+30"]

{[%evp 9,41,0,19,18,22,17,16,2,8,15,0,6,21,8,0,12,11,10,23,25,22,8,9,9,9,8,8,8,9,7,8,8,9,10]} 1. d4 {[%emt 0:01:00]} Nf6 {[%emt 0:01:00]} 2. Nf3 {[%emt 0:00:00]} d5 {[%emt 0:00:00]} 3. Bf4 {[%emt 0:00:00]} c5 {[%emt 0:00:00]} 4. e3 {[%emt 0:00:30]} e6 {[%emt 0:02:30]} 5. Nbd2 {[%emt 0:00:30]} Qb6 {[%emt 0:00:00]} 6. Rb1 {[%emt 0:00:30] [#] D02: 1 d4 d5 2 Nf3 sidelines, including 2...Nf6 3 g3 and 2...Nf6 3 Bf4.} Bd6 $146 {[%emt 0:01:00]} ({Predecessor:} 6... Nc6 7. c3 Be7 8. h3 Bd7 9. Bd3 O-O 10. O-O Rfc8 11. Bg5 h6 12. Bh4 Be8 13. Ne5 Nd7 14. Bxe7 Nxe7 15. f4 {1-0 (44) Gochelashvili,D (2328)-Kutuzov,D (2226) Rybinsk 2001}) 7. dxc5 {[%emt 0:00:30]} Qxc5 {[%emt 0:00:00]} 8. b4 {[%emt 0:00:30]} Qc7 {[%emt 0:00:00]} 9. Bxd6 {[%emt 0:00:30]} Qxd6 {[%emt 0:00:30]} 10. c4 {[%emt 0:00:00]} O-O {[%emt 0:04:30]} 11. Be2 {[%emt 0:03:00]} b6 {[%emt 0:00:30]} 12. O-O {[%emt 0:00:30]} a5 {[%emt 0:00:30]} 13. bxa5 {[%emt 0:02:30]} Rxa5 {[%emt 0:00:30]} 14. cxd5 {[%emt 0:01:30]} Qxd5 {[%emt 0:08:30][%cal Ob8d7]} 15. Rxb6 {[%emt 0:02:30] The position is equal.} Ba6 $1 {[%emt 0:00:30]} 16. Bxa6 {[%emt 0:01:30]} Nxa6 {[%emt 0:00:30]} 17. Rb2 {[%emt 0:08:30]} Rxa2 {[%emt 0:02:30]} 18. Rxa2 {[%emt 0:00:30]} Qxa2 {[%emt 0:00:30]} 19. Qa1 {[%emt 0:00:30]} Qxa1 {[%emt 0:00:00]} 20. Rxa1 {[%emt 0:00:30]} Nc7 {[%emt 0:00:00]} 21. Kf1 {[%emt 0:00:00] An interesting draw.   Weighted Error Value: White=0.03 (flawless) /Black=0.01 (flawless)} 1/2-1/2

[Event "German Bundesliga 2022-23"]
[Site "Germany"]
[Date "2002.01.09"]
[Round "4"]
[White "Zelbel, Patrick"]
[Black "Dudin, Gleb"]
[Result "1-0"]
[ECO "C45"]
[WhiteElo "2456"]
[BlackElo "2489"]
[Annotator "TA"]
[PlyCount "117"]
[EventDate "2022.10.21"]
[EventType "team-tourn"]
[EventCountry "GER"]
[SourceTitle "playchess.com"]
[Source "ChessBase"]
[SourceQuality "1"]
[TimeControl "40/6000+30:3000+30"]

{[%evp 11,117,0,29,0,37,18,47,50,49,75,66,57,76,74,120,129,123,112,112,121,118,83,111,129,147,97,160,72,1914,172,177,154,156,127,144,146,148,144,137,149,146,139,147,138,166,157,151,153,187,200,239,228,221,213,214,149,274,139,128,135,153,160,158,156,164,147,169,125,120,116,162,103,150,154,144,92,102,100,102,102,159,143,202,178,262,257,324,302,256,233,377,378,366,364,341,285,271,281,480,505,693,794,1644,1564,1660,1584,1218,1179]} 1. e4 {[%emt 0:01:00]} e5 {[%emt 0:01:00]} 2. Nf3 {[%emt 0:01:30]} Nc6 {[%emt 0:00:30]} 3. d4 {[%emt 0:00:30]} exd4 {[%emt 0:00:00]} 4. Nxd4 {[%emt 0:00:00]} Bc5 {[%emt 0:00:00]} 5. Nb3 {[%emt 0:01:00]} Bb6 {[%emt 0:00:30]} 6. Nc3 {[%emt 0:00:00]} d6 {[%emt 0:00:30]} 7. Bf4 {[%emt 0:01:00] C45: Scotch Game.} Nge7 {[%emt 0:03:30]} 8. Qd2 {[%emt 0:00:30]} a5 {[%emt 0:10:30]} 9. Bb5 {[%emt 0:08:30] Prevents a4. White is slightly better.} O-O {[%emt 0:01:30]} 10. O-O-O {[%emt 0:05:30]} Be6 {[%emt 0:04:30] [#]} 11. h4 $146 {[%emt 0:02:30]} ({Predecessor:} 11. Na4 Ba7 12. Be3 Bxe3 13. Qxe3 Na7 14. Be2 Qe8 15. Nc3 b5 16. Nd5 Bxd5 17. exd5 {1-0 (34) Gobet,F (2350)-Geller,E (2505) Bern 1988}) 11... Na7 {[%emt 0:08:30]} 12. Ba4 {[%emt 0:10:30]} Ng6 {[%emt 0:32:30]} ({Black should play} 12... Nac6) 13. Bg5 $16 {[%emt 0:12:30]} f6 {[%emt 0:02:30]} 14. Be3 {[%emt 0:00:30] Bxb6 is the strong threat.} Bxe3 {[%emt 0:13:30]} 15. Qxe3 {[%emt 0:00:30]} Ne5 {[%emt 0:00:30]} 16. Nxa5 {[%emt 0:15:30]} b5 {[%emt 0:17:41]} 17. Bb3 {[%emt 0:00:30]} (17. Bxb5 $2 {is the wrong capture.} Nxb5 18. Nxb5 Rxa5 $19) 17... Qd7 {[%emt 0:02:40]} 18. Qe2 {[%emt 0:07:30] Inhibits Nc4.} (18. Qh3 $142 f5 19. exf5 Bxb3 20. Nxb3 (20. axb3 Rxf5 21. Nd5 Nc8 $14)) 18... c6 {[%emt 0:03:32]} (18... c5 $142) 19. Bxe6+ {[%emt 0:18:30]} (19. f4 $142) 19... Nf7 {[%emt 0:00:03][%mdl 8192]} (19... Qxe6 $16 20. a3 Nc8) 20. a3 $2 {[%emt 0:00:30]} (20. Bxd7 Ne5 21. Be6+ Kh8 22. f4) 20... Qxe6 $18 {[%emt 0:01:04]} 21. f4 {[%emt 0:02:30]} Rfb8 {[%emt 0:00:30]} 22. Nb3 {[%emt 0:02:08]} Nc8 {[%emt 0:01:39]} 23. Nd4 {[%emt 0:03:36][%csl LRc6,LRe6]} Qe8 {[%emt 0:00:06]} 24. Qg4 {[%emt 0:01:56] Strongly threatening Ne6.} Nh6 {[%emt 0:03:59]} 25. Qe6+ {[%emt 0:01:46]} Qxe6 {[%emt 0:00:06]} 26. Nxe6 {[%emt 0:00:02]} Ng4 {[%emt 0:00:40] [#]} 27. Rhe1 $1 {[%emt 0:00:35] White is much more active. The black rooks are badly placed.} b4 {[%emt 0:01:17]} 28. axb4 {[%emt 0:02:20]} Rxb4 {[%emt 0:00:05]} 29. b3 {[%emt 0:05:24]} Ra7 {[%emt 0:01:06]} 30. Kb2 {[%emt 0:01:59]} Re7 {[%emt 0:00:31]} 31. Nd4 {[%emt 0:01:17]} Rc7 {[%emt 0:00:27]} 32. Nf5 {[%emt 0:00:52]} Rd7 {[%emt 0:00:06]} 33. Rd4 {[%emt 0:00:31] Prevents g6.} Rb8 {[%emt 0:00:50]} (33... Rxd4 $16 34. Nxd4 Ne7) 34. g3 {[%emt 0:02:44]} (34. e5 $18) 34... g6 $16 {[%emt 0:00:34]} 35. Ne3 {[%emt 0:00:01]} Nxe3 {[%emt 0:00:19]} 36. Rxe3 {[%emt 0:00:02]} Re7 {[%emt 0:00:14]} 37. Re2 {[%emt 0:01:53]} Kf7 {[%emt 0:00:17]} 38. Rc4 {[%emt 0:00:21]} Rb6 {[%emt 0:01:02]} 39. Ra4 {[%emt 0:00:38]} Ra7 {[%emt 0:00:41]} 40. Rd2 {[%emt 0:00:45] And now Rxa7+ would win.} Ke6 {[%emt 0:00:00]} (40... Rxa4 $16 41. Nxa4 Rb8) 41. Rdd4 {[%emt 0:06:10]} (41. f5+ $18 Ke7 42. Rxa7+ Nxa7 43. g4) 41... f5 {[%emt 0:08:31]} (41... Rbb7 $142) 42. Rxa7 {[%emt 0:06:30]} Nxa7 {[%emt 0:00:30][%mdl 4096] Endgame KRN-KRN} 43. Ra4 {[%emt 0:00:00]} (43. Na4 $142 Rb5 44. c4) 43... Rb7 {[%emt 0:01:30]} 44. Kc1 {[%emt 0:04:00]} Rc7 {[%emt 0:07:30]} 45. Kd2 {[%emt 0:02:30]} fxe4 {[%emt 0:01:30]} (45... Nb5 $142) 46. Nxe4 {[%emt 0:01:30]} ({Don't take} 46. Rxe4+ Kf5 47. Ke3 Kg4 $16) 46... Nb5 {[%emt 0:00:30] [#]} (46... h5 $16 {was necessary.} 47. c4 d5) 47. g4 $1 $18 {[%emt 0:06:30]} d5 {[%emt 0:09:30]} (47... h6 $142 48. Ra8 Kf7) 48. Ng5+ {[%emt 0:03:30]} Kd6 {[%emt 0:02:30]} 49. Ra8 {[%emt 0:01:30] Against Rc8} h6 {[%emt 0:01:30]} 50. Nh3 {[%emt 0:05:46] Threatens to win with Rg8.} Nd4 {[%emt 0:08:05]} (50... Ke7 {was called for.} 51. Rh8 Kf7 52. Rxh6 Kg7) 51. Rh8 {[%emt 0:01:56]} h5 {[%emt 0:02:37]} 52. gxh5 {[%emt 0:00:51]} gxh5 {[%emt 0:00:04]} 53. Rxh5 {[%emt 0:00:58]} Re7 {[%emt 0:00:05]} 54. Kd3 {[%emt 0:01:47]} Ne2 {[%emt 0:00:14]} (54... Re4 55. Rg5 Ne6) 55. Rh6+ {[%emt 0:01:27] White is clearly winning.} Kc5 {[%emt 0:00:07]} 56. f5 {[%emt 0:01:00][%cal Bf4f5,Bf5f6,Bf6f7][%mdl 32]} Ng3 {[%emt 0:01:00]} 57. f6 {[%emt 0:01:12]} Re1 {[%emt 0:00:11]} 58. f7 {[%emt 0:04:35]} Rf1 {[%emt 0:01:07] Prevents f8Q+.} 59. Ng5 {Weighted Error Value: White=0.28 (precise) /Black=0.34} 1-0